[Event "XII Paracin Festival 2019"]
[Site "Paracin"]
[Date "2019.07.06"]
[Round "3.28"]
[White "Perunovic, Milos"]
[Black "Nestorovic, Katarina"]
[Result "1-0"]
[ECO "B80"]
[WhiteElo "2597"]
[BlackElo "2179"]
[Annotator "ChessBase"]
[PlyCount "65"]
[EventDate "2019.07.05"]
[EventType "swiss"]
[EventCountry "SRB"]
[SourceTitle "playchess.com"]
[Source "ChessBase"]
[SourceQuality "1"]
[TimeControl "5400+30"]

1. e4 {[%emt 0:00:00]} c5 {[%emt 0:00:00]} 2. Nf3 {[%emt 0:00:00]} e6 {[%emt 0:00:00]} 3. d4 {[%emt 0:00:07]} cxd4 {[%emt 0:00:01]} 4. Nxd4 {[%emt 0:00:06]} Nf6 {[%emt 0:00:16]} 5. Nc3 {[%emt 0:00:10]} d6 {[%emt 0:00:14]} 6. Be3 {[%emt 0:02:17]} a6 {[%emt 0:00:45]} 7. g4 {[%emt 0:01:45]} b5 {[%emt 0:00:31]} 8. g5 {[%emt 0:00:09]} Nfd7 {[%emt 0:00:15]} 9. h4 {[%emt 0:00:51]} Bb7 {[%emt 0:01:15]} 10. a3 {[%emt 0:00:08]} Nc6 {[%emt 0:01:13]} 11. Nxc6 {[%emt 0:08:31]} Bxc6 {[%emt 0:00:10]} 12. Qd4 {[%emt 0:00:19]} Rc8 {[%emt 0:06:19]} 13. O-O-O {[%emt 0:09:38]} Nc5 {[%emt 0:02:31]} 14. f3 {[%emt 0:01:45]} a5 {[%emt 0:10:05]} 15. b4 axb4 {[%emt 0:09:03]} 16. axb4 {[%emt 0:16:07]} Na6 {[%emt 0:08:21]} 17. Bxb5 {[%emt 0:12:05]} Bxb5 {[%emt 0:10:22]} 18. Nxb5 {[%emt 0:00:24]} Qd7 {[%emt 0:00:12]} 19. Na7 {[%emt 0:10:59]} Rc7 {[%emt 0:13:03]} 20. b5 {[%emt 0:03:27]} d5 {[%emt 0:02:09]} 21. bxa6 {[%emt 0:06:23]} Ba3+ {[%emt 0:01:39]} 22. Kd2 {[%emt 0:00:10]} Bc5 {[%emt 0:03:58]} 23. Qxg7 {[%emt 0:02:32]} Rf8 {[%emt 0:07:18]} 24. Rb1 {[%emt 0:02:18]} dxe4+ {[%emt 0:01:19]} 25. Ke1 {[%emt 0:00:16]} Qd6 {[%emt 0:04:32]} 26. Bxc5 {[%emt 0:06:13]} Qxc5 {[%emt 0:04:06]} 27. Rb8+ {[%emt 0:00:51]} Kd7 {[%emt 0:00:06]} 28. Rxf8 {[%emt 0:01:05]} Qe3+ {[%emt 0:01:05]} 29. Kd1 {[%emt 0:00:12]} Qxf3+ {[%emt 0:00:51]} 30. Kc1 {[%emt 0:00:04]} Rxc2+ {[%emt 0:08:13]} 31. Kxc2 {[%emt 0:00:06]} Qd3+ {[%emt 0:00:03]} 32. Kb2 {[%emt 0:01:09]} Qe2+ {[%emt 0:01:13]} 33. Kb3 {[%emt 0:00:09]} 1-0

[Event "XII Paracin Festival 2019"]
[Site "Paracin"]
[Date "2019.07.06"]
[Round "3.29"]
[White "Vidic, Teja"]
[Black "Milanovic, Danilo"]
[Result "0-1"]
[ECO "B01"]
[WhiteElo "2166"]
[BlackElo "2492"]
[Annotator "ChessBase"]
[PlyCount "140"]
[EventDate "2019.07.05"]
[EventType "swiss"]
[EventCountry "SRB"]
[SourceTitle "playchess.com"]
[Source "ChessBase"]
[SourceQuality "1"]
[TimeControl "5400+30"]

1. e4 {[%emt 0:00:00]} d5 {[%emt 0:03:25]} 2. exd5 {[%emt 0:00:00]} Qxd5 {[%emt 0:00:09]} 3. Nc3 {[%emt 0:00:00]} Qd8 {[%emt 0:00:31]} 4. Nf3 {[%emt 0:00:29]} Bg4 {[%emt 0:08:27]} 5. h3 {[%emt 0:00:14]} Bh5 {[%emt 0:00:06]} 6. d4 {[%emt 0:05:28]} c6 {[%emt 0:02:15]} 7. Be3 {[%emt 0:05:18]} e6 {[%emt 0:00:27]} 8. g3 {[%emt 0:01:01]} Nf6 {[%emt 0:12:48]} 9. Bg2 {[%emt 0:00:15]} Nbd7 {[%emt 0:00:24]} 10. O-O {[%emt 0:01:41]} Bd6 {[%emt 0:02:22]} 11. Ne2 {[%emt 0:03:14]} Bg6 {[%emt 0:01:23]} 12. Bf4 {[%emt 0:12:46]} Qc7 {[%emt 0:06:08]} 13. Bxd6 {[%emt 0:02:06]} Qxd6 {[%emt 0:00:06]} 14. Nf4 {[%emt 0:01:26]} Be4 {[%emt 0:00:47]} 15. Re1 {[%emt 0:01:34]} O-O {[%emt 0:00:53]} 16. Ne5 {[%emt 0:01:39]} Bxg2 {[%emt 0:05:58]} 17. Kxg2 {[%emt 0:05:30]} Qb4 {[%emt 0:02:20]} 18. Nxd7 {[%emt 0:06:33]} Nxd7 {[%emt 0:00:10]} 19. Re3 {[%emt 0:00:52]} Nb6 {[%emt 0:00:12]} 20. Rb3 {[%emt 0:03:33]} Qe7 {[%emt 0:03:45]} 21. a4 {[%emt 0:13:21]} Rad8 {[%emt 0:01:38]} 22. a5 {[%emt 0:00:12]} Nc4 {[%emt 0:00:22]} 23. Qd3 {[%emt 0:09:29]} Nd6 {[%emt 0:08:19]} 24. Rd1 {[%emt 0:00:08]} Qc7 {[%emt 0:05:44]} 25. Qc3 {[%emt 0:03:08]} Rd7 {[%emt 0:01:06]} 26. Qe1 {[%emt 0:02:10]} Re8 {[%emt 0:05:00]} 27. Nd3 {[%emt 0:04:33]} Nb5 {[%emt 0:02:41]} 28. Nc5 {[%emt 0:01:40]} Rdd8 {[%emt 0:00:11]} 29. Rbd3 {[%emt 0:01:55]} Nd6 {[%emt 0:02:08]} 30. Qb4 {[%emt 0:01:01]} b6 {[%emt 0:00:47]} 31. axb6 {[%emt 0:00:41]} axb6 {[%emt 0:00:06]} 32. Na4 {[%emt 0:00:31]} Rb8 {[%emt 0:00:40]} 33. Rb3 {[%emt 0:02:28]} Rb7 {[%emt 0:05:29]} 34. Rbd3 {[%emt 0:03:46]} h6 {[%emt 0:02:32]} 35. b3 {[%emt 0:01:02]} Rbb8 {[%emt 0:00:55]} 36. Qe1 {[%emt 0:00:36]} Ra8 {[%emt 0:00:25]} 37. Nc3 {[%emt 0:03:37]} Red8 {[%emt 0:00:22]} 38. Qe5 {[%emt 0:01:19]} Ra5 {[%emt 0:00:12]} 39. Qf4 {[%emt 0:00:03]} Rf5 {[%emt 0:00:11]} 40. Qe3 {[%emt 0:00:07]} Qb7 {[%emt 0:00:42]} 41. Kg1 {[%emt 0:00:29]} Rh5 {[%emt 0:00:57]} 42. Qf3 {[%emt 0:00:44]} Rf5 {[%emt 0:00:25]} 43. Qe3 {[%emt 0:00:04]} Ra5 {[%emt 0:03:25]} 44. Qf4 {[%emt 0:01:19]} Qe7 {[%emt 0:00:47]} 45. Qf3 {[%emt 0:01:10]} Qd7 {[%emt 0:00:19]} 46. Ne2 {[%emt 0:01:19]} b5 {[%emt 0:00:21]} 47. Nf4 {[%emt 0:00:56]} b4 {[%emt 0:00:37]} 48. R3d2 {[%emt 0:00:43]} Nf5 {[%emt 0:00:47]} 49. Qe4 {[%emt 0:00:45]} Nd6 {[%emt 0:02:11]} 50. Qe2 {[%emt 0:00:45]} Nb5 {[%emt 0:01:34]} 51. Qc4 {[%emt 0:00:09]} Qd6 {[%emt 0:00:35]} 52. Kf1 {[%emt 0:01:12]} Nc3 {[%emt 0:00:12]} 53. Re1 {[%emt 0:00:05]} Rf5 {[%emt 0:06:09]} 54. Rd3 {[%emt 0:00:32]} Nb5 {[%emt 0:02:04]} 55. Re5 {[%emt 0:01:13]} Nxd4 {[%emt 0:03:25]} 56. Rxf5 {[%emt 0:00:23]} exf5 {[%emt 0:00:05]} 57. Ne2 {[%emt 0:00:37]} c5 {[%emt 0:00:05]} 58. c3 {[%emt 0:00:10]} bxc3 {[%emt 0:00:34]} 59. b4 {[%emt 0:00:38]} Qe7 {[%emt 0:01:55]} 60. Re3 {[%emt 0:00:27]} Qb7 {[%emt 0:00:09]} 61. Rxc3 {[%emt 0:00:51]} Nxe2 {[%emt 0:01:03]} 62. Kxe2 {[%emt 0:00:25]} cxb4 {[%emt 0:00:07]} 63. Rb3 {[%emt 0:00:16]} Re8+ {[%emt 0:00:12]} 64. Kd2 {[%emt 0:00:34]} Re4 {[%emt 0:00:53]} 65. Qc5 {[%emt 0:00:02]} g6 {[%emt 0:00:18]} 66. Rd3 {[%emt 0:00:06]} Re8 {[%emt 0:00:18]} 67. h4 {[%emt 0:01:17]} b3 {[%emt 0:00:20]} 68. h5 {[%emt 0:00:10]} b2 {[%emt 0:00:33]} 69. hxg6 {[%emt 0:00:04]} b1=Q {[%emt 0:00:31]} 70. gxf7+ {[%emt 0:00:04]} Qxf7 {[%emt 0:00:05]} 0-1

[Event "XII Paracin Festival 2019"]
[Site "Paracin"]
[Date "2019.07.06"]
[Round "3.30"]
[White "Mehmed, Elif"]
[Black "Peng, Xiongjian"]
[Result "0-1"]
[ECO "B00"]
[WhiteElo "2164"]
[BlackElo "2467"]
[Annotator "ChessBase"]
[PlyCount "90"]
[EventDate "2019.07.05"]
[EventType "swiss"]
[EventCountry "SRB"]
[SourceTitle "playchess.com"]
[Source "ChessBase"]
[SourceQuality "1"]
[TimeControl "5400+30"]

1. e4 {[%emt 0:00:00]} b6 {[%emt 0:00:59]} 2. d4 {[%emt 0:00:00]} Bb7 {[%emt 0:00:07]} 3. Bd3 {[%emt 0:00:58]} e6 {[%emt 0:00:26]} 4. f4 {[%emt 0:02:43]} c5 {[%emt 0:03:05]} 5. c3 {[%emt 0:00:27]} Nf6 {[%emt 0:02:39]} 6. Qe2 {[%emt 0:00:42]} cxd4 {[%emt 0:00:14]} 7. cxd4 {[%emt 0:00:24]} Nc6 {[%emt 0:01:25]} 8. d5 {[%emt 0:04:55]} Nb4 {[%emt 0:05:48]} 9. Nc3 {[%emt 0:07:23]} Nxd3+ {[%emt 0:01:19]} 10. Qxd3 {[%emt 0:00:09]} Bb4 {[%emt 0:00:13]} 11. Bd2 {[%emt 0:04:14]} O-O {[%emt 0:01:26]} 12. Nf3 {[%emt 0:03:58]} exd5 {[%emt 0:09:00]} 13. e5 {[%emt 0:00:19]} Ne4 {[%emt 0:05:05]} 14. Nxd5 {[%emt 0:11:39]} Bxd2+ {[%emt 0:00:14]} 15. Nxd2 {[%emt 0:03:03]} Nc5 {[%emt 0:00:10]} 16. Qf3 {[%emt 0:01:47]} d6 {[%emt 0:00:29]} 17. b4 {[%emt 0:00:55]} dxe5 {[%emt 0:00:46]} 18. bxc5 {[%emt 0:00:17]} Bxd5 {[%emt 0:00:13]} 19. Qf2 {[%emt 0:00:19]} exf4 {[%emt 0:01:42]} 20. O-O {[%emt 0:00:25]} bxc5 {[%emt 0:00:06]} 21. Qxc5 {[%emt 0:01:10]} Bxg2 {[%emt 0:01:47]} 22. Kxg2 {[%emt 0:00:09]} Qxd2+ {[%emt 0:00:09]} 23. Rf2 {[%emt 0:00:14]} Qe3 {[%emt 0:00:54]} 24. Qxe3 {[%emt 0:00:37]} fxe3 {[%emt 0:00:07]} 25. Re2 {[%emt 0:00:02]} Rfe8 {[%emt 0:00:17]} 26. Rae1 {[%emt 0:00:08]} Re6 {[%emt 0:00:26]} 27. Rxe3 {[%emt 0:00:05]} Rae8 {[%emt 0:00:08]} 28. Rxe6 {[%emt 0:00:12]} Rxe6 {[%emt 0:00:05]} 29. Rc1 {[%emt 0:01:34]} g6 {[%emt 0:00:11]} 30. Kf3 {[%emt 0:00:33]} Ra6 {[%emt 0:00:12]} 31. Rc2 {[%emt 0:00:05]} Kg7 {[%emt 0:00:14]} 32. Ke4 {[%emt 0:00:19]} f5+ {[%emt 0:00:22]} 33. Ke5 {[%emt 0:00:19]} Ra5+ {[%emt 0:00:07]} 34. Kf4 {[%emt 0:02:55]} Kh6 {[%emt 0:00:09]} 35. Kg3 {[%emt 0:02:58]} Kg5 {[%emt 0:00:25]} 36. Rf2 {[%emt 0:00:43]} f4+ {[%emt 0:00:35]} 37. Kg2 {[%emt 0:00:07]} Kf5 {[%emt 0:00:19]} 38. Rb2 {[%emt 0:00:11]} g5 {[%emt 0:00:08]} 39. Rc2 {[%emt 0:00:14]} g4 {[%emt 0:00:17]} 40. Rb2 {[%emt 0:00:32]} h5 {[%emt 0:00:11]} 41. h4 {[%emt 0:00:48]} Ra3 {[%emt 0:01:10]} 42. Rc2 {[%emt 0:01:13]} Ke4 {[%emt 0:00:07]} 43. Re2+ {[%emt 0:00:31]} Kd3 {[%emt 0:00:08]} 44. Rf2 {[%emt 0:00:38]} Ke3 {[%emt 0:00:08]} 45. Rb2 {[%emt 0:00:06]} Rd3 {[%emt 0:00:05]} 0-1

[Event "XII Paracin Festival 2019"]
[Site "Paracin"]
[Date "2019.07.08"]
[Round "4.1"]
[White "Ivanisevic, Ivan"]
[Black "Janzelj, Tim"]
[Result "1/2-1/2"]
[ECO "D35"]
[WhiteElo "2612"]
[BlackElo "2416"]
[Annotator "RC"]
[PlyCount "141"]
[EventDate "2019.07.05"]
[EventType "swiss"]
[EventCountry "SRB"]
[SourceTitle "playchess.com"]
[Source "ChessBase"]
[SourceQuality "1"]
[TimeControl "5400+30"]

1. c4 {[%emt 0:00:48]} e6 {[%emt 0:00:42]} 2. Nc3 {[%emt 0:00:11]} d5 {[%emt 0:00:22]} 3. d4 {[%emt 0:00:08]} Nf6 {[%emt 0:00:20]} 4. cxd5 {[%emt 0:01:38]} Nxd5 {[%emt 0:00:21]} 5. Nf3 {[%emt 0:00:18]} c5 {[%emt 0:00:26]} 6. g3 {[%emt 0:00:09]} Nc6 {[%emt 0:02:59]} 7. Bg2 {[%emt 0:00:08]} Be7 {[%emt 0:01:16]} 8. O-O {[%emt 0:00:30]} O-O {[%emt 0:00:15]} 9. Rb1 {[%emt 0:00:47]} Bf6 {[%emt 0:07:45]} 10. dxc5 {[%emt 0:06:02]} Nxc3 {[%emt 0:10:25]} 11. bxc3 {[%emt 0:00:35]} Qa5 {[%emt 0:01:12]} 12. Ng5 {[%emt 0:03:57]} Bxg5 {[%emt 0:06:40]} 13. Bxg5 {[%emt 0:00:08]} Qxc5 {[%emt 0:00:09]} 14. Be3 {[%emt 0:02:13]} Qa5 {[%emt 0:12:02]} 15. Qd6 {[%emt 0:06:05]} Rd8 {[%emt 0:02:00]} 16. Qc5 {[%emt 0:00:48]} Qxa2 {[%emt 0:10:55]} 17. Rfd1 {[%emt 0:41:01]} Bd7 {[%emt 0:09:09]} 18. Rxb7 {[%emt 0:09:25]} Be8 {[%emt 0:00:20]} 19. Re1 {[%emt 0:02:34]} Rac8 {[%emt 0:00:58]} 20. Qh5 {[%emt 0:01:15]} Qc4 {[%emt 0:04:13]} 21. h4 {[%emt 0:06:23]} a5 {[%emt 0:09:30]} 22. Reb1 {[%emt 0:02:48]} a4 {[%emt 0:02:12]} 23. Bxc6 {[%emt 0:02:39]} Qxc6 {[%emt 0:00:50]} 24. Bd4 {[%emt 0:00:11]} Qe4 {[%emt 0:10:33]} 25. Qg5 {[%emt 0:03:27]} Qg6 {[%emt 0:04:40]} 26. Qe5 {[%emt 0:00:58]} Rd5 {[%emt 0:00:38]} 27. Qe3 {[%emt 0:00:40]} Rd7 {[%emt 0:01:05]} 28. Rb8 {[%emt 0:01:21]} Rdd8 {[%emt 0:00:23]} 29. R8b6 {[%emt 0:01:55]} a3 {[%emt 0:00:55]} 30. Ra1 {[%emt 0:00:18]} Ra8 {[%emt 0:00:06]} 31. Kh2 {[%emt 0:01:17]} a2 {[%emt 0:00:55]} 32. f3 {[%emt 0:00:47]} Qc2 {[%emt 0:00:49]} 33. Qe5 {[%emt 0:01:23]} f6 {[%emt 0:00:24]} 34. Qxe6+ {[%emt 0:03:02]} Bf7 {[%emt 0:00:01]} 35. Qe4 {[%emt 0:00:06]} Qxe4 {[%emt 0:01:12]} 36. fxe4 {[%emt 0:00:01]} Re8 {[%emt 0:00:19]} 37. e3 {[%emt 0:00:14]} Rxe4 {[%emt 0:00:08]} 38. Rb4 {[%emt 0:00:13]} Ree8 {[%emt 0:00:56]} 39. c4 {[%emt 0:00:49]} Rec8 {[%emt 0:00:04]} 40. c5 {[%emt 0:00:04]} h5 {[%emt 0:00:44]} 41. Kg2 {[%emt 0:00:39]} Bd5+ {[%emt 0:00:02]} 42. Kf2 {[%emt 0:00:06]} Kf7 {[%emt 0:00:20]} 43. g4 {[%emt 0:02:25]} hxg4 {[%emt 0:00:10]} 44. Kg3 {[%emt 0:00:04]} f5 {[%emt 0:01:35]} 45. Rb6 {[%emt 0:00:19]} Rc7 {[%emt 0:00:31]} 46. Kf4 {[%emt 0:00:09]} Be4 {[%emt 0:00:18]} 47. h5 {[%emt 0:00:49]} Rh8 {[%emt 0:00:52]} 48. Rg6 {[%emt 0:00:59]} Rh7 {[%emt 0:00:46]} 49. Rxa2 {[%emt 0:00:10]} Re7 {[%emt 0:00:18]} 50. Raa6 {[%emt 0:00:41]} Bd3 {[%emt 0:00:32]} 51. Rad6 {[%emt 0:00:08]} Re4+ {[%emt 0:00:26]} 52. Kg3 {[%emt 0:00:54]} Ke7 {[%emt 0:00:34]} 53. Rg5 {[%emt 0:00:54]} Bc2 {[%emt 0:00:33]} 54. Kh4 {[%emt 0:00:34]} Bd3 {[%emt 0:00:33]} 55. Rdg6 {[%emt 0:00:39]} g3+ {[%emt 0:00:32]} 56. Kxg3 {[%emt 0:00:24]} f4+ {[%emt 0:00:05]} 57. Kf3 {[%emt 0:00:25]} fxe3 {[%emt 0:00:33]} 58. Bxe3 {[%emt 0:00:20]} Rxe3+ {[%emt 0:00:40]} 59. Kxe3 {[%emt 0:00:05]} Bxg6 {[%emt 0:00:03]} 60. hxg6 {[%emt 0:00:11]} Rh4 {[%emt 0:00:49]} 61. Rf5 {[%emt 0:00:14]} Ke6 {[%emt 0:00:35]} 62. Rf4 {[%emt 0:00:45]} Rh6 {[%emt 0:00:47]} 63. Rd4 {[%emt 0:00:53]} Ke5 {[%emt 0:00:23]} 64. Rd6 {[%emt 0:00:04]} Rh3+ {[%emt 0:00:05]} 65. Kd2 {[%emt 0:00:04]} Rg3 {[%emt 0:00:30]} 66. Kc2 {[%emt 0:00:12]} Rh3 {[%emt 0:00:39]} 67. Kb2 {[%emt 0:00:51]} Rg3 {[%emt 0:00:01]} 68. Rd7 {[%emt 0:01:29]} Rxg6 {[%emt 0:00:46]} 69. Kb3 {[%emt 0:00:02]} Rg1 {[%emt 0:00:25]} 70. Kc4 {[%emt 0:00:17]} g5 {[%emt 0:00:21]} 71. Re7+ {[%emt 0:01:02]} 1/2-1/2

[Event "XII Paracin Festival 2019"]
[Site "Paracin"]
[Date "2019.07.08"]
[Round "4.2"]
[White "Asadli, Vugar"]
[Black "McPhillips, Joseph"]
[Result "1/2-1/2"]
[ECO "C03"]
[WhiteElo "2502"]
[BlackElo "2412"]
[Annotator "ChessBase"]
[PlyCount "78"]
[EventDate "2019.07.05"]
[EventType "swiss"]
[EventCountry "SRB"]
[SourceTitle "playchess.com"]
[Source "ChessBase"]
[SourceQuality "1"]
[TimeControl "5400+30"]

1. e4 {[%emt 0:06:05]} e6 {[%emt 0:00:00]} 2. d4 {[%emt 0:00:13]} d5 {[%emt 0:00:00]} 3. Nd2 {[%emt 0:00:03]} h6 {[%emt 0:00:00]} 4. Ngf3 {[%emt 0:01:10]} Nf6 {[%emt 0:00:01]} 5. Bd3 {[%emt 0:00:49]} c5 {[%emt 0:00:32]} 6. dxc5 {[%emt 0:03:06]} dxe4 {[%emt 0:03:36]} 7. Nxe4 {[%emt 0:03:37]} Nxe4 {[%emt 0:00:12]} 8. Bxe4 {[%emt 0:00:05]} Qxd1+ {[%emt 0:00:07]} 9. Kxd1 {[%emt 0:00:03]} Bxc5 {[%emt 0:00:12]} 10. Ke2 {[%emt 0:00:27]} Nd7 {[%emt 0:07:39]} 11. Rd1 {[%emt 0:04:46]} Nf6 {[%emt 0:15:14]} 12. Bd3 {[%emt 0:00:08]} Ng4 {[%emt 0:00:09]} 13. b4 {[%emt 0:03:53]} Bb6 {[%emt 0:03:13]} 14. Bb5+ {[%emt 0:00:23]} Kf8 {[%emt 0:04:21]} 15. Rf1 {[%emt 0:11:57]} Nf6 {[%emt 0:04:07]} 16. Bf4 {[%emt 0:10:32]} Nd5 {[%emt 0:04:46]} 17. Bd6+ {[%emt 0:05:00]} Kg8 {[%emt 0:00:03]} 18. Bd3 {[%emt 0:01:20]} g5 {[%emt 0:06:41]} 19. c4 {[%emt 0:06:03]} Nf4+ {[%emt 0:00:24]} 20. Bxf4 {[%emt 0:00:56]} gxf4 {[%emt 0:00:02]} 21. Rfd1 {[%emt 0:00:52]} Bc7 {[%emt 0:03:15]} 22. c5 {[%emt 0:01:48]} Kg7 {[%emt 0:03:16]} 23. Rac1 {[%emt 0:05:32]} Rd8 {[%emt 0:03:10]} 24. Bc4 {[%emt 0:05:52]} Bd7 {[%emt 0:06:00]} 25. b5 {[%emt 0:01:18]} Be8 {[%emt 0:01:13]} 26. Rxd8 {[%emt 0:01:06]} Bxd8 {[%emt 0:01:06]} 27. Nd2 {[%emt 0:01:56]} Rc8 {[%emt 0:01:40]} 28. Nb3 {[%emt 0:01:05]} Be7 {[%emt 0:00:34]} 29. a4 {[%emt 0:01:13]} Bd7 {[%emt 0:06:35]} 30. Rd1 {[%emt 0:02:32]} Be8 {[%emt 0:00:02]} 31. Rc1 {[%emt 0:00:50]} Bd7 {[%emt 0:00:02]} 32. Bd3 {[%emt 0:01:31]} f5 {[%emt 0:00:39]} 33. a5 {[%emt 0:06:05]} e5 {[%emt 0:00:06]} 34. f3 {[%emt 0:00:03]} Be6 {[%emt 0:03:59]} 35. Bc4 {[%emt 0:00:06]} Bd7 {[%emt 0:00:03]} 36. Rd1 {[%emt 0:03:49]} Be8 {[%emt 0:00:17]} 37. Rc1 {[%emt 0:04:52]} Bd7 38. Rd1 Be8 39. b6 axb6 1/2-1/2

[Event "XII Paracin Festival 2019"]
[Site "Paracin"]
[Date "2019.07.08"]
[Round "4.3"]
[White "Song, Raymond"]
[Black "Bashirli, Nail"]
[Result "0-1"]
[ECO "E04"]
[WhiteElo "2456"]
[BlackElo "2367"]
[Annotator "ChessBase"]
[PlyCount "76"]
[EventDate "2019.07.05"]
[EventType "swiss"]
[EventCountry "SRB"]
[SourceTitle "playchess.com"]
[Source "ChessBase"]
[SourceQuality "1"]
[TimeControl "5400+30"]

1. d4 {[%emt 0:00:00]} Nf6 {[%emt 0:06:57]} 2. c4 {[%emt 0:00:00]} e6 {[%emt 0:00:02]} 3. g3 {[%emt 0:00:00]} d5 {[%emt 0:00:07]} 4. Nf3 {[%emt 0:00:00]} dxc4 {[%emt 0:00:07]} 5. Bg2 {[%emt 0:00:00]} a6 {[%emt 0:00:04]} 6. O-O {[%emt 0:00:25]} Nc6 {[%emt 0:00:10]} 7. e3 {[%emt 0:00:28]} Bd7 {[%emt 0:00:21]} 8. Qe2 {[%emt 0:00:54]} Bd6 {[%emt 0:01:34]} 9. Qxc4 {[%emt 0:01:22]} O-O {[%emt 0:00:05]} 10. Nbd2 {[%emt 0:02:16]} e5 {[%emt 0:04:14]} 11. dxe5 {[%emt 0:11:53]} Nxe5 {[%emt 0:03:24]} 12. Nxe5 {[%emt 0:00:04]} Bxe5 {[%emt 0:00:20]} 13. Qc2 {[%emt 0:00:22]} c6 {[%emt 0:04:59]} 14. Nb3 {[%emt 0:02:15]} Qc8 {[%emt 0:14:01]} 15. e4 {[%emt 0:07:23]} c5 {[%emt 0:05:54]} 16. Qxc5 {[%emt 0:11:34]} Qxc5 {[%emt 0:01:09]} 17. Nxc5 {[%emt 0:00:01]} Bb5 {[%emt 0:00:47]} 18. Re1 {[%emt 0:01:26]} Rac8 {[%emt 0:04:36]} 19. Nxb7 {[%emt 0:01:42]} Rc2 {[%emt 0:04:44]} 20. a4 {[%emt 0:06:34]} Be2 {[%emt 0:10:19]} 21. Na5 {[%emt 0:15:52]} Rfc8 {[%emt 0:13:28]} 22. h3 {[%emt 0:00:17]} h6 {[%emt 0:10:15]} 23. Nb3 {[%emt 0:01:15]} Bd3 {[%emt 0:03:56]} 24. Re3 {[%emt 0:09:32]} Bc4 {[%emt 0:00:55]} 25. Nd2 {[%emt 0:00:24]} Bd4 {[%emt 0:03:41]} 26. Re1 {[%emt 0:05:12]} Bd3 {[%emt 0:00:03]} 27. Bf3 {[%emt 0:07:04]} R8c7 {[%emt 0:03:31]} 28. Rd1 {[%emt 0:03:48]} Nd7 {[%emt 0:00:38]} 29. Nb3 {[%emt 0:00:15]} Bxf2+ {[%emt 0:00:37]} 30. Kh1 {[%emt 0:00:00]} Ne5 {[%emt 0:00:59]} 31. Bf4 {[%emt 0:00:17]} Nxf3 {[%emt 0:01:09]} 32. Rxd3 {[%emt 0:00:16]} Be3 {[%emt 0:00:06]} 33. g4 {[%emt 0:02:59]} Bxf4 {[%emt 0:00:07]} 34. Rxf3 {[%emt 0:00:01]} g5 {[%emt 0:00:05]} 35. Nd4 {[%emt 0:01:15]} Rxb2 {[%emt 0:00:19]} 36. Nf5 {[%emt 0:00:55]} Kh7 {[%emt 0:01:16]} 37. Rd1 {[%emt 0:01:54]} Rcc2 {[%emt 0:00:28]} 38. Ne3 {[%emt 0:01:38]} Rc3 {[%emt 0:00:26]} 0-1

[Event "XII Paracin Festival 2019"]
[Site "Paracin"]
[Date "2019.07.08"]
[Round "4.4"]
[White "Avalyan, Artur"]
[Black "Svetushkin, Dmitry"]
[Result "1-0"]
[ECO "E47"]
[WhiteElo "2351"]
[BlackElo "2528"]
[Annotator "ChessBase"]
[PlyCount "135"]
[EventDate "2019.07.05"]
[EventType "swiss"]
[EventCountry "SRB"]
[SourceTitle "playchess.com"]
[Source "ChessBase"]
[SourceQuality "1"]
[TimeControl "5400+30"]

1. d4 Nf6 {[%emt 0:01:30]} 2. c4 {[%emt 0:00:04]} e6 {[%emt 0:02:06]} 3. Nc3 {[%emt 0:00:04]} Bb4 {[%emt 0:00:07]} 4. e3 {[%emt 0:00:08]} O-O {[%emt 0:00:08]} 5. Bd3 {[%emt 0:00:32]} c5 {[%emt 0:00:07]} 6. Nf3 {[%emt 0:00:53]} b6 {[%emt 0:00:07]} 7. O-O {[%emt 0:00:43]} Bxc3 {[%emt 0:01:06]} 8. bxc3 {[%emt 0:00:06]} Bb7 {[%emt 0:00:04]} 9. Nd2 {[%emt 0:00:51]} Nc6 {[%emt 0:00:07]} 10. Bb2 {[%emt 0:00:09]} d6 {[%emt 0:00:22]} 11. e4 {[%emt 0:00:09]} e5 {[%emt 0:00:17]} 12. d5 {[%emt 0:00:05]} Ne7 {[%emt 0:00:04]} 13. g3 {[%emt 0:00:27]} Ne8 {[%emt 0:03:14]} 14. Qe2 {[%emt 0:06:50]} Bc8 {[%emt 0:08:13]} 15. f3 {[%emt 0:07:46]} f5 {[%emt 0:04:17]} 16. exf5 {[%emt 0:00:10]} Bxf5 {[%emt 0:00:05]} 17. Ne4 {[%emt 0:06:06]} Ng6 {[%emt 0:04:59]} 18. Bc1 {[%emt 0:06:59]} Qd7 {[%emt 0:03:33]} 19. a4 {[%emt 0:03:46]} Nf6 {[%emt 0:02:54]} 20. Bd2 {[%emt 0:26:01]} Nxe4 {[%emt 0:04:56]} 21. Bxe4 {[%emt 0:00:04]} Kh8 {[%emt 0:01:11]} 22. a5 {[%emt 0:11:48]} Bxe4 {[%emt 0:06:11]} 23. Qxe4 {[%emt 0:00:32]} bxa5 {[%emt 0:01:25]} 24. Rxa5 {[%emt 0:01:23]} Rab8 {[%emt 0:00:06]} 25. Ra2 {[%emt 0:01:54]} Rf7 {[%emt 0:03:02]} 26. Kg2 {[%emt 0:00:25]} Qc7 {[%emt 0:08:49]} 27. h4 {[%emt 0:04:48]} Qd7 {[%emt 0:06:24]} 28. h5 {[%emt 0:01:23]} Ne7 {[%emt 0:00:05]} 29. Rfa1 {[%emt 0:00:53]} Ng8 {[%emt 0:00:44]} 30. Rxa7 {[%emt 0:05:02]} Qxa7 {[%emt 0:00:22]} 31. Rxa7 {[%emt 0:00:03]} Rxa7 {[%emt 0:00:06]} 32. Bg5 {[%emt 0:00:09]} Rf7 {[%emt 0:04:18]} 33. Qg4 {[%emt 0:02:32]} Re8 {[%emt 0:00:08]} 34. Kh3 {[%emt 0:01:01]} Nf6 {[%emt 0:04:33]} 35. Bxf6 {[%emt 0:02:02]} Rxf6 {[%emt 0:00:06]} 36. Qd7 {[%emt 0:00:13]} Ra8 {[%emt 0:00:08]} 37. Qc6 {[%emt 0:02:27]} Raf8 {[%emt 0:00:09]} 38. Kg4 {[%emt 0:01:18]} g6 {[%emt 0:03:56]} 39. h6 {[%emt 0:01:15]} g5 {[%emt 0:00:10]} 40. Kh5 {[%emt 0:01:45]} Rg6 {[%emt 0:00:38]} 41. Qd7 {[%emt 0:00:46]} Kg8 {[%emt 0:07:26]} 42. Qg4 {[%emt 0:00:08]} Kh8 {[%emt 0:09:44]} 43. Qd7 {[%emt 0:00:05]} g4 {[%emt 0:05:34]} 44. fxg4 {[%emt 0:01:39]} Rf1 {[%emt 0:00:37]} 45. g5 {[%emt 0:00:34]} Rh1+ {[%emt 0:00:16]} 46. Kg4 {[%emt 0:00:03]} Rhxh6 {[%emt 0:00:18]} 47. Qf7 {[%emt 0:03:53]} Rg8 {[%emt 0:00:37]} 48. Kf3 {[%emt 0:00:23]} Rhg6 {[%emt 0:00:17]} 49. g4 {[%emt 0:00:19]} Rxg5 {[%emt 0:02:34]} 50. Qf6+ {[%emt 0:00:02]} R5g7 {[%emt 0:00:05]} 51. Ke3 {[%emt 0:00:25]} Re8 {[%emt 0:01:03]} 52. Qxd6 {[%emt 0:02:28]} Rxg4 {[%emt 0:00:05]} 53. Qxc5 {[%emt 0:00:24]} Rg3+ {[%emt 0:00:36]} 54. Ke4 {[%emt 0:00:51]} Rg4+ {[%emt 0:00:03]} 55. Kf3 {[%emt 0:00:04]} Rg6 {[%emt 0:01:23]} 56. Qc7 {[%emt 0:00:18]} Rg7 {[%emt 0:01:22]} 57. Qc6 {[%emt 0:00:19]} e4+ {[%emt 0:00:08]} 58. Ke3 {[%emt 0:00:12]} Rg3+ {[%emt 0:00:24]} 59. Kd4 {[%emt 0:00:11]} Rgg8 {[%emt 0:00:27]} 60. Qf6+ {[%emt 0:00:19]} Rg7 {[%emt 0:00:05]} 61. Ke3 {[%emt 0:02:01]} Kg8 {[%emt 0:00:05]} 62. Qf4 {[%emt 0:00:11]} Rf7 {[%emt 0:00:23]} 63. Qg4+ {[%emt 0:00:37]} Rg7 {[%emt 0:00:46]} 64. Qh4 {[%emt 0:00:02]} Rc8 {[%emt 0:02:08]} 65. Qxe4 {[%emt 0:00:22]} Rd8 {[%emt 0:01:46]} 66. c5 {[%emt 0:00:11]} Kf8 {[%emt 0:00:04]} 67. Kd4 {[%emt 0:00:27]} Re8 {[%emt 0:01:40]} 68. Qf4+ {[%emt 0:00:03]} 1-0